[Event "*** Titled Tuesday Blitz"]
[Site "Chess.com"]
[Date "2021.02.16"]
[Round "6"]
[White "kidagent"]
[Black "AldokhinIvan"]
[Result "0-1"]
[WhiteElo "2301"]
[BlackElo "2446"]
[TimeControl "180+1"]
[EndTime "11:08:14 PST"]
[Termination "AldokhinIvan won by resignation"]

1. e4 {[%clk 0:03:00.9]} 1... c6 {[%clk 0:02:59.5]} 2. d4 {[%clk 0:03:00.5]}
2... d5 {[%clk 0:03:00]} 3. Nd2 {[%clk 0:03:01.1]} 3... dxe4 {[%clk 0:03:00.3]}
4. Nxe4 {[%clk 0:03:02]} 4... Nf6 {[%clk 0:03:01.1]} 5. Nxf6+ {[%clk 0:02:53.7]}
5... gxf6 {[%clk 0:03:01.3]} 6. c3 {[%clk 0:02:54.3]} 6... Nd7 {[%clk
0:03:01.3]} 7. Qc2 {[%clk 0:02:54.5]} 7... Nb6 {[%clk 0:03:01.5]} 8. Bd3 {[%clk
0:02:48.8]} 8... h5 {[%clk 0:02:56.7]} 9. Ne2 {[%clk 0:02:47.8]} 9... h4 {[%clk
0:02:55.4]} 10. Bf4 {[%clk 0:02:43.7]} 10... Qd5 {[%clk 0:02:45.6]} 11. Be4
{[%clk 0:02:36.6]} 11... Qb5 {[%clk 0:02:40.7]} 12. a4 {[%clk 0:02:23.8]} 12...
Qh5 {[%clk 0:02:40.4]} 13. O-O-O {[%clk 0:02:14]} 13... Be6 {[%clk 0:02:18.3]}
14. b3 {[%clk 0:01:55]} 14... O-O-O {[%clk 0:02:09.5]} 15. Kb2 {[%clk 0:01:50]}
15... Bd5 {[%clk 0:01:55.9]} 16. a5 {[%clk 0:01:41.7]} 16... Bxe4 {[%clk
0:01:40.5]} 17. Qxe4 {[%clk 0:01:40.8]} 17... Qxa5 {[%clk 0:01:41]} 18. Ra1
{[%clk 0:01:40.7]} 18... Qd5 {[%clk 0:01:41.2]} 19. Qxd5 {[%clk 0:01:29.6]}
19... Nxd5 {[%clk 0:01:27.1]} 20. Rxa7 {[%clk 0:01:28.9]} 20... Nxf4 {[%clk
0:01:24.6]} 21. Nxf4 {[%clk 0:01:29.8]} 21... Bh6 {[%clk 0:01:24.5]} 22. Nd3
{[%clk 0:01:28.5]} 22... e5 {[%clk 0:01:08.6]} 23. dxe5 {[%clk 0:01:04.3]} 23...
Kc7 {[%clk 0:00:58.8]} 24. Rd1 {[%clk 0:00:54.6]} 24... fxe5 {[%clk 0:00:58.6]}
25. f3 {[%clk 0:00:52.1]} 25... f5 {[%clk 0:00:54.1]} 26. Kc2 {[%clk 0:00:51.7]}
26... e4 {[%clk 0:00:52.9]} 27. fxe4 {[%clk 0:00:40.4]} 27... fxe4 {[%clk
0:00:52.8]} 28. Nb2 {[%clk 0:00:20.6]} 28... Rxd1 {[%clk 0:00:51.2]} 29. Kxd1
{[%clk 0:00:20.3]} 29... Rd8+ {[%clk 0:00:51.4]} 30. Ke1 {[%clk 0:00:20.3]}
30... Rd2 {[%clk 0:00:40.1]} 31. Nc4 {[%clk 0:00:18.3]} 31... Rxg2 {[%clk
0:00:39.9]} 32. Ra8 {[%clk 0:00:14.7]} 32... Rxh2 {[%clk 0:00:38.4]} 33. Rh8
{[%clk 0:00:14.5]} 33... Bf4 {[%clk 0:00:38.4]} 34. Rh7+ {[%clk 0:00:14.3]}
34... Kc8 {[%clk 0:00:37.7]} 35. Rh8+ {[%clk 0:00:14.3]} 35... Kd7 {[%clk
0:00:38.3]} 36. Rh7+ {[%clk 0:00:14.5]} 36... Ke6 {[%clk 0:00:38.9]} 37. Rxb7
{[%clk 0:00:14.2]} 37... h3 {[%clk 0:00:33.5]} 38. Rh7 {[%clk 0:00:12.9]} 38...
Bg3+ {[%clk 0:00:33.4]} 39. Kf1 {[%clk 0:00:13.2]} 39... Rf2+ {[%clk 0:00:32.4]}
40. Kg1 {[%clk 0:00:13.2]} 40... h2+ {[%clk 0:00:32]} 41. Kh1 {[%clk 0:00:13.2]}
41... Rf1+ {[%clk 0:00:31.6]} 42. Kg2 {[%clk 0:00:13.3]} 42... Rg1+ {[%clk
0:00:32.3]} 0-1

[Event "*** Titled Tuesday Blitz"]
[Site "Chess.com"]
[Date "2021.02.16"]
[Round "6"]
[White "noblerone"]
[Black "rozabaku"]
[Result "0-1"]
[WhiteElo "2384"]
[BlackElo "2225"]
[TimeControl "180+1"]
[EndTime "11:08:17 PST"]
[Termination "rozabaku won on time"]

1. d4 {[%clk 0:03:00.9]} 1... Nf6 {[%clk 0:02:59.6]} 2. Nf3 {[%clk 0:03:00.9]}
2... g6 {[%clk 0:02:59.4]} 3. Bg5 {[%clk 0:03:00.5]} 3... Bg7 {[%clk 0:02:58.9]}
4. Nbd2 {[%clk 0:03:01]} 4... d6 {[%clk 0:02:56.8]} 5. c3 {[%clk 0:03:00.3]}
5... c5 {[%clk 0:02:56.8]} 6. dxc5 {[%clk 0:02:35.9]} 6... dxc5 {[%clk
0:02:55.3]} 7. Bxf6 {[%clk 0:02:35.7]} 7... Bxf6 {[%clk 0:02:49.1]} 8. Ne4
{[%clk 0:02:35.9]} 8... Qb6 {[%clk 0:02:42.7]} 9. Nxf6+ {[%clk 0:02:19.7]} 9...
Qxf6 {[%clk 0:02:43.6]} 10. e3 {[%clk 0:02:14.6]} 10... O-O {[%clk 0:02:39.2]}
11. Be2 {[%clk 0:01:46.2]} 11... Nc6 {[%clk 0:02:38.2]} 12. O-O {[%clk
0:01:41.9]} 12... Be6 {[%clk 0:02:32.2]} 13. Qa4 {[%clk 0:01:36.6]} 13... Rfd8
{[%clk 0:02:22.1]} 14. Rfd1 {[%clk 0:01:33.8]} 14... Bd5 {[%clk 0:01:57]} 15.
Qb5 {[%clk 0:01:11.6]} 15... b6 {[%clk 0:01:37.6]} 16. h3 {[%clk 0:00:57.3]}
16... Ne5 {[%clk 0:01:29.9]} 17. Nxe5 {[%clk 0:00:43.9]} 17... Qxe5 {[%clk
0:01:30.8]} 18. a4 {[%clk 0:00:33.3]} 18... Qc7 {[%clk 0:01:11.2]} 19. Bf1
{[%clk 0:00:22.8]} 19... Bc6 {[%clk 0:01:07.4]} 20. Qc4 {[%clk 0:00:20.5]} 20...
Kg7 {[%clk 0:01:00.8]} 21. b4 {[%clk 0:00:20.1]} 21... Rxd1 {[%clk 0:00:56.3]}
22. Rxd1 {[%clk 0:00:19.8]} 22... Bxa4 {[%clk 0:00:55]} 23. Ra1 {[%clk 0:00:19]}
23... Bd7 {[%clk 0:00:41.6]} 24. bxc5 {[%clk 0:00:15.8]} 24... Qxc5 {[%clk
0:00:42.5]} 25. Qe4 {[%clk 0:00:12.8]} 25... Bc6 {[%clk 0:00:37.9]} 26. Qd4+
{[%clk 0:00:08.5]} 26... Qxd4 {[%clk 0:00:37.3]} 27. exd4 {[%clk 0:00:09.4]}
27... a5 {[%clk 0:00:34.6]} 28. c4 {[%clk 0:00:09.8]} 28... e6 {[%clk 0:00:32]}
29. Be2 {[%clk 0:00:09.1]} 29... Rd8 {[%clk 0:00:31.4]} 30. Rd1 {[%clk
0:00:08.7]} 30... Ba4 {[%clk 0:00:26.7]} 31. Rd2 {[%clk 0:00:07.7]} 31... Bb3
{[%clk 0:00:27]} 32. f3 {[%clk 0:00:06.9]} 32... a4 {[%clk 0:00:27.2]} 33. c5
{[%clk 0:00:05.1]} 33... bxc5 {[%clk 0:00:26.2]} 34. Kf2 {[%clk 0:00:05]} 34...
Rxd4 {[%clk 0:00:24.7]} 35. Rb2 {[%clk 0:00:05]} 35... Rb4 {[%clk 0:00:21.5]}
36. Ke3 {[%clk 0:00:02.3]} 36... a3 {[%clk 0:00:21.1]} 37. Rb1 {[%clk
0:00:02.8]} 37... a2 {[%clk 0:00:20.3]} 38. Ra1 {[%clk 0:00:03.4]} 38... Bd5
{[%clk 0:00:20.1]} 39. Bd1 {[%clk 0:00:02.2]} 39... Rb1 {[%clk 0:00:20.3]} 0-1

[Event "*** Titled Tuesday Blitz"]
[Site "Chess.com"]
[Date "2021.02.16"]
[Round "6"]
[White "markowskitomasz"]
[Black "AlexOstrovskiy"]
[Result "1/2-1/2"]
[WhiteElo "2603"]
[BlackElo "2751"]
[TimeControl "180+1"]
[EndTime "11:08:18 PST"]
[Termination "Game drawn by repetition"]

1. d4 {[%clk 0:03:00.9]} 1... Nf6 {[%clk 0:02:59.7]} 2. Nf3 {[%clk 0:03:00]}
2... c5 {[%clk 0:02:59.7]} 3. d5 {[%clk 0:02:59.5]} 3... g6 {[%clk 0:02:59.7]}
4. Nc3 {[%clk 0:02:58.1]} 4... Bg7 {[%clk 0:02:59.5]} 5. e4 {[%clk 0:02:58.3]}
5... d6 {[%clk 0:03:00.1]} 6. Be2 {[%clk 0:02:58.1]} 6... O-O {[%clk 0:02:59.3]}
7. h3 {[%clk 0:02:57.6]} 7... Na6 {[%clk 0:02:58]} 8. O-O {[%clk 0:02:57]} 8...
Nc7 {[%clk 0:02:56.7]} 9. Re1 {[%clk 0:02:54.5]} 9... Rb8 {[%clk 0:02:52.4]} 10.
a4 {[%clk 0:02:51.9]} 10... Nd7 {[%clk 0:02:49.4]} 11. Bf4 {[%clk 0:02:44.6]}
11... a6 {[%clk 0:02:37.8]} 12. a5 {[%clk 0:02:39.1]} 12... b5 {[%clk
0:02:38.1]} 13. axb6 {[%clk 0:02:37.9]} 13... Rxb6 {[%clk 0:02:38]} 14. Ra2
{[%clk 0:02:36.7]} 14... Nb5 {[%clk 0:02:38]} 15. Nxb5 {[%clk 0:02:31.5]} 15...
axb5 {[%clk 0:02:38.9]} 16. c3 {[%clk 0:02:27.6]} 16... b4 {[%clk 0:02:33.6]}
17. Qc1 {[%clk 0:02:22.3]} 17... Re8 {[%clk 0:02:29.3]} 18. c4 {[%clk
0:02:07.2]} 18... e5 {[%clk 0:02:21]} 19. dxe6 {[%clk 0:01:57.6]} 19... Rxe6
{[%clk 0:02:20.4]} 20. Bd3 {[%clk 0:01:39.2]} 20... Bb7 {[%clk 0:02:18.5]} 21.
b3 {[%clk 0:01:32.8]} 21... Nb8 {[%clk 0:01:52.3]} 22. Rae2 {[%clk 0:01:27.6]}
22... Nc6 {[%clk 0:01:52.3]} 23. h4 {[%clk 0:01:21.5]} 23... Nd4 {[%clk
0:01:47.1]} 24. Nxd4 {[%clk 0:01:19.4]} 24... Bxd4 {[%clk 0:01:48]} 25. g3
{[%clk 0:01:09.8]} 25... Ra6 {[%clk 0:01:45.7]} 26. Bg5 {[%clk 0:01:07.8]} 26...
Qe8 {[%clk 0:01:38.1]} 27. Qf4 {[%clk 0:01:04.9]} 27... Ra3 {[%clk 0:01:31.8]}
28. Bc2 {[%clk 0:01:00.9]} 28... Ra2 {[%clk 0:01:21.5]} 29. Bd3 {[%clk
0:00:58.9]} 29... Ra3 {[%clk 0:01:06.3]} 30. Bc2 {[%clk 0:00:57]} 30... f6
{[%clk 0:00:46.1]} 31. Bh6 {[%clk 0:00:54.8]} 31... Qe7 {[%clk 0:00:46.5]} 32.
Qg4 {[%clk 0:00:50]} 32... Ra2 {[%clk 0:00:30.2]} 33. Bd3 {[%clk 0:00:47.2]}
33... Ra3 {[%clk 0:00:30]} 34. Bc2 {[%clk 0:00:46.6]} 34... Kf7 {[%clk
0:00:29.7]} 35. Be3 {[%clk 0:00:32.1]} 35... Bc3 {[%clk 0:00:27.3]} 36. Rd1
{[%clk 0:00:29]} 36... Bxe4 {[%clk 0:00:25.5]} 37. Bxe4 {[%clk 0:00:23.9]} 37...
Rxe4 {[%clk 0:00:26.4]} 38. Qc8 {[%clk 0:00:23.7]} 38... Rxb3 {[%clk 0:00:18.3]}
39. Qh8 {[%clk 0:00:22.1]} 39... Ke6 {[%clk 0:00:13.5]} 40. Qc8+ {[%clk
0:00:20.7]} 40... Kf7 {[%clk 0:00:13]} 41. Qh8 {[%clk 0:00:20.3]} 41... Ke6
{[%clk 0:00:13.2]} 42. Qc8+ {[%clk 0:00:20.2]} 42... Kf7 {[%clk 0:00:07.8]}
1/2-1/2

[Event "*** Titled Tuesday Blitz"]
[Site "Chess.com"]
[Date "2021.02.16"]
[Round "6"]
[White "Kotofeyca"]
[Black "andrewtnb"]
[Result "0-1"]
[WhiteElo "2432"]
[BlackElo "2318"]
[TimeControl "180+1"]
[EndTime "11:08:18 PST"]
[Termination "andrewtnb won on time"]

1. d4 {[%clk 0:03:00.9]} 1... Nf6 {[%clk 0:02:58.3]} 2. c4 {[%clk 0:03:00.9]}
2... e6 {[%clk 0:02:57.4]} 3. Nf3 {[%clk 0:03:00.4]} 3... d5 {[%clk 0:02:56.8]}
4. Nc3 {[%clk 0:03:00]} 4... dxc4 {[%clk 0:02:53.1]} 5. e4 {[%clk 0:02:59.7]}
5... Bb4 {[%clk 0:02:53.1]} 6. e5 {[%clk 0:02:59.1]} 6... Nd5 {[%clk 0:02:48.1]}
7. Bd2 {[%clk 0:02:58]} 7... Bxc3 {[%clk 0:02:28]} 8. bxc3 {[%clk 0:02:57.6]}
8... b5 {[%clk 0:02:28.1]} 9. Ng5 {[%clk 0:02:55]} 9... h6 {[%clk 0:02:18.4]}
10. Qh5 {[%clk 0:02:22.8]} 10... Rf8 {[%clk 0:02:14.9]} 11. Ne4 {[%clk
0:02:08.3]} 11... Nd7 {[%clk 0:02:09.4]} 12. Qg4 {[%clk 0:01:59.9]} 12... Ne7
{[%clk 0:01:10.8]} 13. Qxg7 {[%clk 0:01:46.3]} 13... Nf5 {[%clk 0:01:11]} 14.
Qh7 {[%clk 0:01:38.1]} 14... Bb7 {[%clk 0:01:07.7]} 15. Ng3 {[%clk 0:01:23.4]}
15... Qh4 {[%clk 0:00:20.9]} 16. Nxf5 {[%clk 0:00:32.3]} 16... Qe4+ {[%clk
0:00:19.8]} 17. Be2 {[%clk 0:00:20.3]} 17... exf5 {[%clk 0:00:20.1]} 18. f3
{[%clk 0:00:18.8]} 18... Qh4+ {[%clk 0:00:18.2]} 19. g3 {[%clk 0:00:19.1]} 19...
Qh5 {[%clk 0:00:17.7]} 20. Qxh6 {[%clk 0:00:17.6]} 20... Bxf3 {[%clk 0:00:17.9]}
21. e6 {[%clk 0:00:11.8]} 21... fxe6 {[%clk 0:00:13.9]} 22. Qxe6+ {[%clk
0:00:11.1]} 22... Kd8 {[%clk 0:00:12.9]} 23. Bxf3 {[%clk 0:00:08.2]} 23... Qxf3
{[%clk 0:00:08.3]} 24. Rf1 {[%clk 0:00:07.9]} 24... Qd3 {[%clk 0:00:06.5]} 25.
Qd5 {[%clk 0:00:04.1]} 25... Re8+ {[%clk 0:00:05.9]} 26. Kf2 {[%clk 0:00:04.3]}
26... Qxd2+ {[%clk 0:00:05.1]} 27. Kg1 {[%clk 0:00:04.8]} 27... Rb8 {[%clk
0:00:04.2]} 28. Rf2 {[%clk 0:00:04.7]} 28... Qe3 {[%clk 0:00:04.1]} 29. Qxf5
{[%clk 0:00:03.4]} 29... Qe4 {[%clk 0:00:04]} 30. Qg5+ {[%clk 0:00:03.4]} 30...
Kc8 {[%clk 0:00:03]} 31. Raf1 {[%clk 0:00:01.5]} 31... Rb6 {[%clk 0:00:02.9]}
0-1

[Event "*** Titled Tuesday Blitz"]
[Site "Chess.com"]
[Date "2021.02.16"]
[Round "6"]
[White "AlexTriapishko"]
[Black "PaulfromSPb"]
[Result "1-0"]
[WhiteElo "2838"]
[BlackElo "2613"]
[TimeControl "180+1"]
[EndTime "11:08:19 PST"]
[Termination "AlexTriapishko won by resignation"]

1. d4 {[%clk 0:02:59.9]} 1... Nf6 {[%clk 0:02:58.8]} 2. Bg5 {[%clk 0:02:58.8]}
2... e6 {[%clk 0:02:55.2]} 3. e4 {[%clk 0:02:58.1]} 3... h6 {[%clk 0:02:53.9]}
4. Bxf6 {[%clk 0:02:58.6]} 4... Qxf6 {[%clk 0:02:54.7]} 5. c3 {[%clk 0:02:59.1]}
5... d6 {[%clk 0:02:54.8]} 6. Bc4 {[%clk 0:02:55.4]} 6... Nd7 {[%clk 0:02:54.7]}
7. Ne2 {[%clk 0:02:53.3]} 7... g5 {[%clk 0:02:54.1]} 8. O-O {[%clk 0:02:51.3]}
8... e5 {[%clk 0:02:50.6]} 9. Ng3 {[%clk 0:02:47.2]} 9... Nb6 {[%clk 0:02:44.9]}
10. Be2 {[%clk 0:02:38.5]} 10... h5 {[%clk 0:02:43.1]} 11. Nxh5 {[%clk
0:02:35.4]} 11... Qh6 {[%clk 0:02:42.6]} 12. h3 {[%clk 0:02:34.5]} 12... Be6
{[%clk 0:02:33.8]} 13. d5 {[%clk 0:02:26.7]} 13... Bd7 {[%clk 0:02:33.4]} 14.
Bg4 {[%clk 0:02:26.2]} 14... O-O-O {[%clk 0:02:30.2]} 15. a4 {[%clk 0:02:16.9]}
15... Kb8 {[%clk 0:01:49.8]} 16. a5 {[%clk 0:02:13.8]} 16... Nc8 {[%clk
0:01:49.3]} 17. a6 {[%clk 0:02:09.3]} 17... b6 {[%clk 0:01:49.3]} 18. Bxd7
{[%clk 0:01:41.2]} 18... Rxd7 {[%clk 0:01:49.2]} 19. Qa4 {[%clk 0:01:41.4]}
19... c6 {[%clk 0:01:49.5]} 20. dxc6 {[%clk 0:01:39.9]} 20... Rc7 {[%clk
0:01:49.6]} 21. g4 {[%clk 0:01:27.2]} 21... Qe6 {[%clk 0:01:42]} 22. Qa2 {[%clk
0:00:53]} 22... Qg6 {[%clk 0:01:27.4]} 23. Na3 {[%clk 0:00:37.2]} 23... Rxc6
{[%clk 0:01:12.8]} 24. Qd5 {[%clk 0:00:29.2]} 24... Ne7 {[%clk 0:01:11.3]} 25.
Qd3 {[%clk 0:00:29.6]} 25... Rxh5 {[%clk 0:01:02.2]} 26. gxh5 {[%clk 0:00:29.1]}
26... Qxh5 {[%clk 0:01:03.1]} 27. Qg3 {[%clk 0:00:19.8]} 27... Ng6 {[%clk
0:00:57.8]} 28. Qg4 {[%clk 0:00:20.1]} 28... Qxg4+ {[%clk 0:00:33.7]} 29. hxg4
{[%clk 0:00:18.9]} 29... Rc5 {[%clk 0:00:33.7]} 30. b4 {[%clk 0:00:14.6]} 30...
Rxc3 {[%clk 0:00:32.5]} 31. Rfc1 {[%clk 0:00:15.1]} 31... Rb3 {[%clk 0:00:22.2]}
32. Rc4 {[%clk 0:00:14.9]} 32... Nf4 {[%clk 0:00:20.6]} 33. Nb5 {[%clk
0:00:15.2]} 33... d5 {[%clk 0:00:12.2]} 34. Rc7 {[%clk 0:00:10.9]} 34... Rxb4
{[%clk 0:00:13.1]} 35. Rb7+ {[%clk 0:00:10.7]} 35... Kc8 {[%clk 0:00:08.2]} 36.
Nxa7+ {[%clk 0:00:10.9]} 36... Kd8 {[%clk 0:00:08.1]} 37. Nc6+ {[%clk
0:00:11.8]} 1-0

[Event "*** Titled Tuesday Blitz"]
[Site "Chess.com"]
[Date "2021.02.16"]
[Round "6"]
[White "Leo_C"]
[Black "CraiggoryC"]
[Result "1-0"]
[WhiteElo "2425"]
[BlackElo "2223"]
[TimeControl "180+1"]
[EndTime "11:08:19 PST"]
[Termination "Leo_C won on time"]

1. d4 {[%clk 0:03:00.9]} 1... Nf6 {[%clk 0:02:59.5]} 2. c4 {[%clk 0:02:59.9]}
2... g6 {[%clk 0:02:59.9]} 3. f3 {[%clk 0:02:59.8]} 3... Bg7 {[%clk 0:03:00]} 4.
e4 {[%clk 0:02:59.8]} 4... O-O {[%clk 0:02:59.4]} 5. Nc3 {[%clk 0:03:00.4]} 5...
c5 {[%clk 0:02:59.6]} 6. dxc5 {[%clk 0:02:54.3]} 6... Na6 {[%clk 0:02:57.2]} 7.
Be3 {[%clk 0:02:53.1]} 7... Qa5 {[%clk 0:02:49.5]} 8. a3 {[%clk 0:02:48.5]} 8...
Ne8 {[%clk 0:02:05.5]} 9. Ne2 {[%clk 0:02:40.3]} 9... Qc7 {[%clk 0:01:56.5]} 10.
Nd5 {[%clk 0:02:25.2]} 10... Qd8 {[%clk 0:01:52.9]} 11. Qd2 {[%clk 0:02:13]}
11... d6 {[%clk 0:01:35.6]} 12. cxd6 {[%clk 0:02:09.4]} 12... Nxd6 {[%clk
0:01:36.5]} 13. Nec3 {[%clk 0:01:54.7]} 13... e6 {[%clk 0:01:19.9]} 14. Nb4
{[%clk 0:01:42.9]} 14... Qc7 {[%clk 0:01:06.9]} 15. Nxa6 {[%clk 0:01:23.2]}
15... bxa6 {[%clk 0:01:07.8]} 16. c5 {[%clk 0:01:23]} 16... Nb5 {[%clk
0:01:03.3]} 17. Bxb5 {[%clk 0:01:06.7]} 17... axb5 {[%clk 0:01:04.2]} 18. Nxb5
{[%clk 0:01:06.3]} 18... Qb8 {[%clk 0:00:42.1]} 19. Nd6 {[%clk 0:00:53.4]} 19...
Qxb2 {[%clk 0:00:35.8]} 20. Qxb2 {[%clk 0:00:52.4]} 20... Bxb2 {[%clk
0:00:36.7]} 21. Ra2 {[%clk 0:00:51.4]} 21... Bc3+ {[%clk 0:00:34.4]} 22. Kf2
{[%clk 0:00:51.4]} 22... Ba6 {[%clk 0:00:29.2]} 23. Rc1 {[%clk 0:00:49.6]} 23...
Be5 {[%clk 0:00:27.6]} 24. f4 {[%clk 0:00:45.6]} 24... Bxd6 {[%clk 0:00:22.6]}
25. cxd6 {[%clk 0:00:46.5]} 25... Rfc8 {[%clk 0:00:20.4]} 26. Rac2 {[%clk
0:00:43.3]} 26... Rxc2+ {[%clk 0:00:20.3]} 27. Rxc2 {[%clk 0:00:44.1]} 27... Rc8
{[%clk 0:00:14.9]} 28. Rxc8+ {[%clk 0:00:41.9]} 28... Bxc8 {[%clk 0:00:15.8]}
29. Bxa7 {[%clk 0:00:42.2]} 29... Kf8 {[%clk 0:00:13.9]} 30. e5 {[%clk
0:00:40.6]} 30... Ke8 {[%clk 0:00:14.1]} 31. Kg3 {[%clk 0:00:39.7]} 31... Kd7
{[%clk 0:00:11.5]} 32. Kh4 {[%clk 0:00:39.6]} 32... h6 {[%clk 0:00:11.5]} 33. a4
{[%clk 0:00:35.1]} 33... Ba6 {[%clk 0:00:11.1]} 34. a5 {[%clk 0:00:32.4]} 34...
Bf1 {[%clk 0:00:10.7]} 35. Kg3 {[%clk 0:00:31.5]} 35... Ba6 {[%clk 0:00:10.4]}
36. Be3 {[%clk 0:00:27.9]} 36... Bb7 {[%clk 0:00:09.9]} 37. Kf2 {[%clk
0:00:24.7]} 37... Ba6 {[%clk 0:00:08.7]} 38. g4 {[%clk 0:00:24]} 38... Bb7
{[%clk 0:00:08.1]} 39. f5 {[%clk 0:00:24.2]} 39... exf5 {[%clk 0:00:06.4]} 40.
gxf5 {[%clk 0:00:24]} 40... h5 {[%clk 0:00:05.8]} 41. e6+ {[%clk 0:00:22.5]}
41... fxe6 {[%clk 0:00:05.6]} 42. fxg6 {[%clk 0:00:22.8]} 1-0

[Event "*** Titled Tuesday Blitz"]
[Site "Chess.com"]
[Date "2021.02.16"]
[Round "6"]
[White "MITerryble"]
[Black "Fusikk"]
[Result "1-0"]
[WhiteElo "2927"]
[BlackElo "2705"]
[TimeControl "180+1"]
[EndTime "11:08:20 PST"]
[Termination "MITerryble won on time"]

1. e4 {[%clk 0:03:00.9]} 1... c5 {[%clk 0:03:00]} 2. Nf3 {[%clk 0:03:00.3]} 2...
Nc6 {[%clk 0:03:00.3]} 3. Bb5 {[%clk 0:03:00.2]} 3... a6 {[%clk 0:02:54.3]} 4.
Bxc6 {[%clk 0:03:00.1]} 4... dxc6 {[%clk 0:02:55.2]} 5. d3 {[%clk 0:02:59.8]}
5... Qc7 {[%clk 0:02:55.2]} 6. h3 {[%clk 0:02:59.3]} 6... e5 {[%clk 0:02:55.3]}
7. Be3 {[%clk 0:02:57]} 7... Bd6 {[%clk 0:02:51.7]} 8. Nbd2 {[%clk 0:02:54.7]}
8... Ne7 {[%clk 0:02:49.1]} 9. Nc4 {[%clk 0:02:54.5]} 9... Ng6 {[%clk
0:02:45.1]} 10. a4 {[%clk 0:02:51.5]} 10... a5 {[%clk 0:02:45.1]} 11. Qd2 {[%clk
0:02:51.1]} 11... Be6 {[%clk 0:02:43.4]} 12. Qc3 {[%clk 0:02:48.8]} 12... b6
{[%clk 0:02:36.5]} 13. h4 {[%clk 0:02:41.6]} 13... h5 {[%clk 0:02:31]} 14. Ng5
{[%clk 0:02:41.4]} 14... Bxc4 {[%clk 0:02:12.5]} 15. Qxc4 {[%clk 0:02:42.3]}
15... Nf8 {[%clk 0:02:02]} 16. Rh3 {[%clk 0:02:27.7]} 16... f6 {[%clk
0:01:56.1]} 17. Ne6 {[%clk 0:02:23.7]} 17... Qf7 {[%clk 0:01:47.5]} 18. Nxf8
{[%clk 0:02:23]} 18... Qxc4 {[%clk 0:01:40.3]} 19. dxc4 {[%clk 0:02:23.9]} 19...
Kxf8 {[%clk 0:01:34.2]} 20. Bd2 {[%clk 0:02:23.9]} 20... Rd8 {[%clk 0:01:27.3]}
21. Ke2 {[%clk 0:02:23.7]} 21... Kf7 {[%clk 0:01:26.9]} 22. Rg1 {[%clk
0:02:14.5]} 22... Be7 {[%clk 0:01:20.4]} 23. Be3 {[%clk 0:01:59.9]} 23... Bf8
{[%clk 0:01:09.1]} 24. Rf3 {[%clk 0:01:56]} 24... Rd7 {[%clk 0:01:02.5]} 25. Ra1
{[%clk 0:01:52.4]} 25... g6 {[%clk 0:01:00.6]} 26. Ra3 {[%clk 0:01:46.2]} 26...
Bg7 {[%clk 0:00:55.1]} 27. Rb3 {[%clk 0:01:45.6]} 27... Rb8 {[%clk 0:00:49.5]}
28. Bxc5 {[%clk 0:01:45.3]} 28... Rdb7 {[%clk 0:00:50.1]} 29. Bd6 {[%clk
0:01:41.3]} 29... Rd8 {[%clk 0:00:49.5]} 30. c5 {[%clk 0:01:38.2]} 30... Ke6
{[%clk 0:00:47]} 31. Rfd3 {[%clk 0:01:31.9]} 31... b5 {[%clk 0:00:20.4]} 32.
axb5 {[%clk 0:01:31.6]} 32... Rxb5 {[%clk 0:00:20.4]} 33. Rxb5 {[%clk
0:01:13.7]} 33... cxb5 {[%clk 0:00:21.3]} 34. Rb3 {[%clk 0:00:57]} 34... b4
{[%clk 0:00:20.3]} 35. c3 {[%clk 0:00:57.1]} 35... bxc3 {[%clk 0:00:19.7]} 36.
Rxc3 {[%clk 0:00:49.8]} 36... f5 {[%clk 0:00:06.2]} 37. f3 {[%clk 0:00:47.4]}
37... fxe4 {[%clk 0:00:06.2]} 38. fxe4 {[%clk 0:00:48.3]} 38... Bf6 {[%clk
0:00:06.7]} 39. Ra3 {[%clk 0:00:45.1]} 39... Ra8 {[%clk 0:00:03.2]} 40. b4
{[%clk 0:00:45]} 40... a4 {[%clk 0:00:03.6]} 41. b5 {[%clk 0:00:45.5]} 41... Bd8
{[%clk 0:00:02]} 42. Kd3 {[%clk 0:00:39.8]} 42... Kd7 {[%clk 0:00:01.7]} 43. Kc4
{[%clk 0:00:39.6]} 43... Ra7 {[%clk 0:00:01.5]} 44. Kd5 {[%clk 0:00:39.4]} 44...
Ra5 {[%clk 0:00:01.2]} 45. c6+ {[%clk 0:00:38.2]} 45... Kc8 {[%clk 0:00:01.6]}
46. Kc4 {[%clk 0:00:37.2]} 1-0

[Event "*** Titled Tuesday Blitz"]
[Site "Chess.com"]
[Date "2021.02.16"]
[Round "6"]
[White "CSB7"]
[Black "MasterMK73"]
[Result "1-0"]
[WhiteElo "2541"]
[BlackElo "2274"]
[TimeControl "180+1"]
[EndTime "11:08:20 PST"]
[Termination "CSB7 won on time"]

1. d4 {[%clk 0:03:00.9]} 1... d5 {[%clk 0:02:51.1]} 2. Nf3 {[%clk 0:02:59.7]}
2... e6 {[%clk 0:02:50.3]} 3. Bf4 {[%clk 0:02:57.8]} 3... Bd6 {[%clk 0:02:49]}
4. e3 {[%clk 0:02:56.8]} 4... Nf6 {[%clk 0:02:47.9]} 5. Nbd2 {[%clk 0:02:56.5]}
5... c5 {[%clk 0:02:47.7]} 6. dxc5 {[%clk 0:02:53.2]} 6... Bxc5 {[%clk
0:02:45.9]} 7. c4 {[%clk 0:02:47.3]} 7... O-O {[%clk 0:02:43.8]} 8. a3 {[%clk
0:02:45.1]} 8... a5 {[%clk 0:02:39.5]} 9. Rc1 {[%clk 0:02:44.9]} 9... Bd6 {[%clk
0:02:38.2]} 10. Bg5 {[%clk 0:02:44.6]} 10... Nbd7 {[%clk 0:02:35.7]} 11. cxd5
{[%clk 0:02:44.3]} 11... exd5 {[%clk 0:02:35.2]} 12. Bd3 {[%clk 0:02:43.6]}
12... h6 {[%clk 0:02:29.5]} 13. Bh4 {[%clk 0:02:43.3]} 13... Nc5 {[%clk
0:02:14]} 14. Bb1 {[%clk 0:02:40.1]} 14... Bg4 {[%clk 0:02:13.4]} 15. O-O {[%clk
0:02:28.1]} 15... Qe7 {[%clk 0:02:02.2]} 16. Qc2 {[%clk 0:02:21.3]} 16... g6
{[%clk 0:01:56.5]} 17. Qc3 {[%clk 0:02:16.1]} 17... Ncd7 {[%clk 0:01:53.2]} 18.
h3 {[%clk 0:02:10.3]} 18... Be6 {[%clk 0:01:22.6]} 19. e4 {[%clk 0:01:27.6]}
19... Rac8 {[%clk 0:01:19.8]} 20. Qxa5 {[%clk 0:01:14.1]} 20... g5 {[%clk
0:01:15]} 21. Bg3 {[%clk 0:00:47.9]} 21... Bxg3 {[%clk 0:01:14.7]} 22. fxg3
{[%clk 0:00:48.8]} 22... Nc5 {[%clk 0:00:46.8]} 23. e5 {[%clk 0:00:42.5]} 23...
Nfe4 {[%clk 0:00:41.8]} 24. Qb4 {[%clk 0:00:38.7]} 24... Nxg3 {[%clk 0:00:31.8]}
25. Rfe1 {[%clk 0:00:35.2]} 25... b6 {[%clk 0:00:26.2]} 26. Nd4 {[%clk 0:00:31]}
26... Qd7 {[%clk 0:00:16.6]} 27. Qxb6 {[%clk 0:00:20.4]} 27... Bxh3 {[%clk
0:00:10.7]} 28. Qxh6 {[%clk 0:00:18.7]} 28... Bf5 {[%clk 0:00:06.7]} 29. Qxg5+
{[%clk 0:00:18.6]} 29... Bg6 {[%clk 0:00:06.2]} 30. Qxg3 {[%clk 0:00:17.8]}
30... Ne4 {[%clk 0:00:02.2]} 31. Bxe4 {[%clk 0:00:13.4]} 31... dxe4 {[%clk
0:00:01.9]} 32. Qe3 {[%clk 0:00:10.3]} 32... Rcd8 {[%clk 0:00:01.4]} 33. N2b3
{[%clk 0:00:10.2]} 1-0